bitfinex/quotes_ETHUSD_20250131
["timestamp","ask_amount","ask_price","bid_price","bid_amount"]
[1738306129307,3.88915,3266.1,3266.0,0.2504]
[1738306130183,3.06135,3266.6,3266.0,0.2504]
[1738306130514,3.06135,3266.6,3266.0,3.31219]
[1738306130683,3.06112,3266.8,3266.0,4.10879]
[1738306131005,3.06129,3266.6,3266.0,4.10879]
[1738306131205,0.03064644,3266.5,3266.0,4.10879]
[1738306131410,3.06129,3266.6,3266.0,4.10879]
[1738306131709,3.06129,3266.6,3266.1,35.0]
[1738306132004,3.06092,3267.0,3266.3,3.06149]
[1738306132179,2.39433333,3266.9,3266.3,3.06149]
[1738306133129,0.03040178,3266.8,3266.3,3.06149]
[1738306133278,0.03040178,3266.8,3266.4,35.0]
[1738306133676,3.06123,3266.7,3266.4,35.0]
[1738306133870,3.06123,3266.7,3266.0,1.047]
[1738306133871,3.09187644,3266.7,3266.0,1.047]
[1738306134103,3.06138,3266.5,3266.0,0.2504]
[1738306134305,3.06156,3266.3,3266.0,0.2504]
[1738306134505,0.03064644,3266.2,3266.0,35.2504]
[1738306134678,3.06156,3266.3,3266.0,35.2504]
[1738306135080,0.03047956,3266.2,3266.0,35.2504]
[1738306135504,3.06138,3266.5,3266.0,35.2504]
[1738306135815,0.03047956,3266.1,3266.0,35.2504]
[1738306136114,3.06138,3266.5,3266.0,35.2504]
[1738306136411,0.03047956,3266.1,3266.0,35.2504]
[1738306136612,3.09211644,3266.4,3266.0,35.2504]
[1738306136975,3.09206956,3266.3,3266.0,35.2504]
[1738306137193,3.06159,3266.3,3266.0,35.2504]
[1738306139853,3.06175,3266.1,3266.0,0.2504]
[1738306140329,3.09222956,3266.1,3266.0,0.2504]
[1738306140630,0.03047956,3266.1,3266.0,0.2504]
[1738306141039,0.03064644,3266.1,3266.0,0.2504]
[1738306141337,3.06158,3266.3,3266.0,0.2504]
[1738306141531,0.03047956,3266.1,3266.0,0.2504]
[1738306141709,3.06139,3266.5,3266.0,0.2504]
[1738306141912,3.06147,3266.4,3266.0,0.2504]
[1738306142433,0.03047956,3266.4,3266.3,3.06156]
[1738306142634,0.03047956,3266.4,3266.3,3.61906]
[1738306142938,3.87212,3267.1,3266.4,3.61141]
[1738306143095,3.06098,3267.0,3266.4,3.06141]
[1738306143300,0.03032399,3266.4,3266.1,4.09001]
[1738306143523,0.03064644,3266.9,3266.3,0.55]
[1738306144035,3.06115,3266.8,3266.3,0.55]
[1738306144633,0.03064644,3266.7,3266.3,0.55]
[1738306144836,3.06115,3266.8,3266.3,0.55]
[1738306145011,0.03064644,3266.7,3266.3,0.55]
[1738306145722,3.09183644,3266.7,3266.3,0.55]
[1738306145915,0.03064644,3266.7,3266.3,0.55]
[1738306146129,0.03064644,3266.9,3266.2,6.5587439]
[1738306146442,3.06113,3266.8,3266.2,6.5587439]
[1738306146654,0.03064644,3266.7,3266.2,6.5587439]
[1738306147132,0.03064644,3266.7,3266.2,3.0]
[1738306147357,3.06129,3266.6,3266.1,3.0]
[1738306147955,3.09203644,3266.5,3266.0,3.31221]
[1738306148153,3.06139,3266.5,3266.0,0.2504]
[1738306148303,3.06112,3266.8,3266.0,0.2504]
[1738306148505,0.03044296,3266.4,3266.2,3.06165]
[1738306148704,3.06091,3267.0,3266.4,3.06145]
[1738306149140,0.03040635,3266.9,3266.4,3.06145]
[1738306150724,3.12211279,3266.9,3266.2,7.40997]
[1738306150926,3.06128,3266.6,3266.1,3.0]
[1738306151132,3.09210644,3266.5,3266.0,0.2504]
[1738306151335,3.06146,3266.5,3266.0,3.2504]
[1738306151940,0.02949452,3266.4,3266.0,3.2504]
[1738306152211,0.02949452,3266.4,3266.0,6.31218]
[1738306152411,0.02949452,3266.4,3266.0,7.347098]
[1738306152654,3.0613,3266.6,3266.0,7.347098]
[1738306152848,3.09194644,3266.6,3266.0,7.347098]
[1738306153043,3.06144,3266.5,3266.0,0.2504]
[1738306153251,3.0611,3266.8,3266.0,0.2504]
[1738306153450,0.02938471,3266.4,3266.0,0.2504]
[1738306153637,3.06146,3266.5,3266.0,0.2504]
[1738306154269,3.06159,3266.3,3266.0,0.2504]
[1738306154461,3.06175,3266.1,3266.0,0.2504]
[1738306155124,3.09113471,3266.1,3266.0,0.2504]
[1738306156745,3.12178115,3266.1,3266.0,0.2504]
[1738306157354,3.09113471,3266.1,3266.0,0.2504]
[1738306157847,0.02938471,3266.1,3266.0,0.2504]
[1738306158049,6.16017,3267.8,3266.0,0.2504]
[1738306158050,3.06144,3266.5,3266.0,0.2504]
[1738306158259,0.03064644,3266.4,3266.0,0.2504]
[1738306158621,3.06147,3266.4,3266.0,0.2504]
[1738306158821,3.06134,3266.6,3266.0,3.3122]
[1738306159021,0.03064644,3266.5,3266.0,3.3122]
[1738306159550,3.09203644,3266.5,3266.0,0.2504]
[1738306160261,3.06139,3266.5,3266.0,0.2504]
[1738306160647,3.06139,3266.5,3266.1,35.0]
[1738306162322,3.88083,3266.8,3266.1,35.0]
[1738306162524,3.06127,3266.7,3266.1,35.0]
[1738306162825,3.0613,3266.6,3266.1,35.0]
[1738306163865,3.88083,3266.8,3266.2,3.06166]
[1738306164060,3.06119,3266.7,3266.0,6.374]
[1738306164259,3.06119,3266.7,3266.0,7.0114]
[1738306164450,3.88083,3266.8,3266.2,3.06165]
[1738306164657,3.06125,3266.7,3266.1,35.0]
[1738306165552,3.09200644,3266.6,3266.1,35.0]
[1738306166327,3.06136,3266.6,3266.1,35.0]
[1738306169067,3.06136,3266.6,3266.1,38.06173]
[1738306170163,6.942,3266.8,3266.1,38.06173]
[1738306170384,3.65868622,3267.2,3266.4,3.0]
[1738306170586,3.06099,3267.0,3266.4,3.0]
[1738306170994,3.09165644,3266.9,3266.4,38.0]
[1738306171171,3.06115,3266.8,3266.4,38.0]
[1738306171340,3.06137,3266.6,3266.4,38.0]
[1738306171684,3.06137,3266.6,3266.4,35.0]
[1738306171881,3.87862,3266.8,3266.4,35.0]
[1738306172038,3.06092,3267.0,3266.4,3.12998842]
[1738306172238,3.06092,3267.0,3266.2,0.8179]
[1738306172239,3.06092,3267.0,3266.3,3.06151]
[1738306172483,3.06092,3267.0,3266.4,35.0]
[1738306173587,3.06101,3266.9,3266.4,35.0]
[1738306174134,0.7731,3267.1,3266.6,3.06126]
[1738306174336,0.8164,3268.3,3267.0,0.8033]
[1738306174588,3.06004,3268.0,3267.3,3.06062]
[1738306175206,3.06016,3267.8,3267.1,38.06076]
[1738306175873,3.06035,3267.6,3267.1,35.0]
[1738306176180,3.06063,3267.3,3266.8,3.0]
[1738306176358,0.791,3268.2,3266.8,3.55]
[1738306176688,3.05988,3268.1,3267.2,0.7611]
[1738306176993,3.06013,3267.9,3267.2,3.82179]
[1738306177143,0.03064644,3267.8,3267.2,3.82179]
[1738306177545,0.03064644,3267.8,3267.2,0.7611]
[1738306177752,3.06042,3267.6,3266.9,3.269]
[1738306177993,0.30907764,3267.8,3267.1,3.06081]
[1738306178300,3.06023,3267.8,3267.1,3.06081]
[1738306178454,0.03064644,3267.7,3267.0,3.0]
[1738306178656,3.86925,3267.5,3266.9,3.06099]
[1738306180061,0.8088,3267.5,3266.9,3.06099]
[1738306180264,0.83944644,3267.5,3266.8,3.7936]
[1738306180463,3.06054,3267.4,3266.8,3.7936]
[1738306180661,3.06054,3267.4,3266.8,3.0]
[1738306180861,0.03064644,3267.3,3266.8,3.0]
[1738306181271,3.06075,3267.2,3266.5,3.82075]
[1738306181655,0.03064644,3267.3,3266.5,3.82075]
[1738306181656,0.03064644,3267.3,3266.5,0.7594]
[1738306181855,0.7722,3268.3,3267.3,3.06063]
[1738306182056,3.83189,3268.3,3267.6,3.06034]
[1738306182259,0.03064644,3268.2,3267.6,3.06034]
[1738306185781,0.7722,3268.3,3267.7,3.06024]
[1738306186719,0.7722,3268.3,3267.7,38.06024]
[1738306188919,0.7722,3268.3,3267.7,3.06024]
[1738306189198,3.05942,3268.6,3267.9,3.06004]
[1738306189988,0.7861,3268.7,3268.0,3.82914]
[1738306190375,0.7861,3268.7,3268.1,35.0]
[1738306190711,3.84545,3268.7,3268.1,35.0]
[1738306191206,3.05978,3268.3,3267.5,0.774]
[1738306191384,0.03064644,3268.2,3267.5,4.457455]
[1738306191571,3.09048644,3268.2,3267.5,4.517885]
[1738306191772,3.09048644,3268.2,3267.6,3.0]
[1738306192202,0.7587,3268.1,3267.4,3.0]
[1738306192503,3.09070644,3268.0,3267.3,3.06055]
[1738306193171,0.03064644,3268.0,3267.4,0.55]
[1738306193391,0.7587,3268.1,3267.5,3.06043]
[1738306193878,0.78934644,3268.1,3267.5,3.06043]
[1738306194777,3.84923644,3268.1,3267.5,3.06043]
[1738306195212,0.78934644,3268.1,3267.5,3.06043]
[1738306195418,0.7587,3268.1,3267.6,3.366383]
[1738306196230,0.78934644,3268.1,3267.6,0.306043]
[1738306196783,0.7587,3268.1,3267.6,0.306043]
[1738306197431,0.78934644,3268.1,3267.5,3.06042]
[1738306197634,3.05962,3268.4,3267.5,3.06044]
[1738306197635,0.8269,3268.3,3267.5,3.06044]
[1738306197783,0.02950881,3268.2,3267.7,3.06023]
[1738306197981,0.02950881,3268.2,3267.8,0.306023]
[1738306198185,0.02950881,3268.2,3267.5,3.06044]
[1738306198186,3.09042644,3268.2,3267.5,3.06044]
[1738306198417,0.02950423,3268.1,3267.5,3.06044]
[1738306198640,0.02950423,3268.1,3267.3,6.812515]
[1738306198641,0.03064644,3268.0,3267.3,6.812515]
[1738306199082,3.08958423,3267.9,3267.3,6.812515]
[1738306199814,0.02950423,3267.9,3267.4,3.0605]
[1738306199997,0.02950423,3267.9,3267.5,0.9873015]
[1738306200216,3.05989,3268.1,3267.5,0.9873015]
[1738306200385,0.06015067,3268.0,3267.5,0.9873015]
[1738306200588,3.12019067,3268.0,3267.5,0.9873015]
[1738306200789,0.06015067,3268.0,3267.5,0.9873015]
[1738306201108,3.06007,3267.9,3267.2,7.44388]
[1738306201285,0.03064644,3267.8,3267.2,7.44388]
[1738306201814,0.02950423,3267.7,3267.2,7.44388]
[1738306202231,0.02950423,3267.7,3267.3,3.0606]
[1738306202436,3.09071644,3267.9,3267.3,3.0606]
[1738306202630,3.05988,3268.1,3267.3,3.0606]
[1738306202631,3.05988,3268.1,3267.4,3.8049]
[1738306203134,0.06015067,3268.0,3267.4,3.8049]
[1738306203639,0.02950423,3268.0,3267.7,3.06024]
[1738306203842,0.02950423,3268.0,3267.8,3.06014]
[1738306204132,0.8269,3268.3,3267.8,3.06014]
[1738306204484,0.02944018,3268.2,3267.8,3.06014]
[1738306204935,0.811,3268.6,3267.8,1.40574888]
[1738306205134,3.05915,3268.9,3268.3,3.05968]
[1738306205786,3.08993644,3268.8,3268.1,3.05986]
[1738306205986,3.05938,3268.7,3268.1,3.05986]
[1738306206917,3.87006,3269.0,3268.1,3.05986]
[1738306207236,3.87006,3269.0,3268.3,3.05967]
[1738306207403,3.87006,3269.0,3268.4,4.144057]
[1738306208004,3.87006,3269.0,3268.4,1.084467]
[1738306208202,3.08893613,3268.9,3268.4,1.084467]
[1738306208606,3.05922,3268.8,3268.4,1.084467]
[1738306208802,0.03064644,3268.7,3268.2,3.05977]
[1738306209016,3.08922613,3268.6,3268.0,3.0]
[1738306209225,0.03064644,3268.5,3268.0,6.05996]
[1738306209387,0.03064644,3268.5,3268.1,0.967]
[1738306209599,3.08986644,3268.8,3268.1,4.02685]
[1738306210025,0.02980613,3268.7,3268.1,4.02685]
[1738306210421,3.08914613,3268.7,3268.1,4.02685]
[1738306211646,0.02980613,3268.7,3268.2,3.05969]
[1738306211844,3.87007,3269.0,3268.4,3.05953]
[1738306212146,0.02980613,3268.9,3268.4,3.05953]
[1738306212531,0.02980613,3268.9,3268.6,3.05938]
[1738306212730,3.05896,3269.1,3268.5,0.7756]
[1738306213036,3.81378,3268.6,3268.3,0.40572863]
[1738306213386,3.05972,3268.3,3267.8,0.3061]
[1738306213955,0.02980155,3268.2,3267.8,0.3061]
[1738306214574,3.05956,3268.5,3267.8,3.36624]
[1738306215069,0.02979698,3268.4,3267.8,3.36624]
[1738306215275,3.0596,3268.4,3267.8,3.36624]
[1738306215576,0.02979698,3268.3,3267.8,3.36624]
[1738306215873,0.7684,3267.9,3267.2,0.3061]
[1738306216081,3.09086644,3267.8,3267.2,3.36681]
[1738306216308,3.06022,3267.8,3267.2,3.36681]
[1738306216606,3.08998953,3267.8,3267.2,3.36681]
[1738306216804,3.08998953,3267.8,3267.3,0.417561]
[1738306217157,0.03064644,3267.7,3267.3,0.417561]
[1738306217345,3.06044,3267.5,3266.9,3.0]
[1738306217547,3.06044,3267.5,3266.7,3.86327]
[1738306217548,3.06069,3267.3,3266.7,3.86327]
[1738306217987,3.06069,3267.3,3266.8,3.0]
[1738306218151,0.02976953,3267.2,3266.8,3.0]
[1738306218622,3.06074,3267.2,3266.4,3.86355]
[1738306218748,3.09065953,3267.1,3266.5,0.679865]
[1738306218967,3.09065953,3267.1,3266.6,0.55]
[1738306219485,3.06108,3266.9,3266.3,2.423]
[1738306219649,3.06132,3266.6,3266.3,2.423]
[1738306219864,0.02889105,3266.5,3266.3,2.423]
[1738306220162,3.89156644,3266.9,3266.4,0.2423]
[1738306220359,3.89156644,3266.9,3266.3,2.423]
[1738306220360,0.02880866,3266.4,3266.3,2.423]
[1738306220594,3.89156644,3266.9,3266.3,2.423]
[1738306220793,0.02880866,3266.4,3266.3,2.423]
[1738306220994,0.83054644,3266.9,3266.3,2.423]
[1738306221181,0.02880866,3266.4,3266.3,2.423]
[1738306221383,3.89155644,3266.9,3266.3,3.271457]
[1738306221698,0.02880866,3266.8,3266.3,5.4345]
[1738306222666,3.08990866,3266.8,3266.3,2.373]
[1738306222870,0.03064644,3266.7,3266.3,2.373]
[1738306223093,0.7999,3266.9,3266.3,5.43453]
[1738306223306,0.02880866,3266.6,3266.3,5.43453]
[1738306223491,0.7999,3266.9,3266.3,5.43453]
[1738306223665,0.02880866,3266.5,3266.3,2.373]
[1738306223866,0.7999,3266.9,3266.4,3.06147]
[1738306224200,0.02880866,3266.8,3266.4,3.06147]
[1738306224404,0.02880866,3266.8,3266.3,2.373]
[1738306224608,0.02880866,3266.8,3266.4,3.06147]
[1738306224903,0.02880866,3266.8,3266.3,2.373]
[1738306226268,3.08996866,3266.8,3266.3,2.373]
[1738306226493,3.0612,3266.7,3266.3,2.373]
[1738306227001,0.02864388,3266.6,3266.3,2.373]
[1738306227497,3.8609,3266.9,3266.3,2.373]
[1738306227498,0.02864388,3266.5,3266.3,2.373]
[1738306227999,3.09174644,3266.8,3266.3,2.373]
[1738306228176,0.02864388,3266.4,3266.3,2.373]
[1738306228800,3.06147,3266.4,3266.3,2.373]
[1738306229378,3.367617,3266.4,3266.3,2.373]
[1738306229713,3.0617,3266.2,3266.0,0.2504]
[1738306229865,0.03064644,3266.3,3266.0,1.0605]
[1738306230071,3.06071,3267.3,3266.4,3.06147]
[1738306230270,0.306071,3267.2,3266.6,3.06122]
[1738306230774,3.06093,3267.0,3266.4,3.06147]
[1738306230987,0.03064644,3266.9,3266.4,3.06147]
[1738306232005,3.82068,3267.0,3266.4,3.06147]
[1738306232173,3.06104,3266.9,3266.3,3.0]
[1738306232371,3.1171492,3266.9,3266.3,6.06155]
[1738306232704,0.0561092,3266.9,3266.4,3.06145]
[1738306233080,0.47442856,3266.9,3266.1,6.36784]
[1738306233384,3.06128,3266.7,3266.1,3.3061]
[1738306233769,3.11740836,3266.6,3266.1,3.3061]
[1738306233974,0.05611836,3266.6,3266.2,3.06164]
[1738306234176,3.0611,3266.8,3266.2,3.06164]
[1738306234577,0.05606802,3266.7,3266.2,3.06164]
[1738306234779,3.11726802,3266.7,3266.1,3.3061]
[1738306234978,3.0613,3266.6,3266.1,0.3061]
[1738306235385,0.05598561,3266.5,3266.1,0.3061]
[1738306235791,0.05598561,3266.5,3266.1,3.36784]
[1738306236107,0.05598561,3266.5,3266.1,0.3061]
[1738306236315,0.05598561,3266.5,3266.1,3.36785]
[1738306236610,0.7597,3267.0,3266.4,3.81989]
[1738306237002,0.7597,3267.0,3266.6,3.0612]
[1738306237319,0.7597,3267.0,3266.4,3.81989]
[1738306237894,0.7597,3267.0,3266.6,3.06128]
[1738306238090,0.7597,3267.0,3266.4,3.81989]
[1738306238291,0.05593525,3266.9,3266.4,3.81989]
[1738306243117,0.05593525,3266.9,3266.7,3.06112]
[1738306243500,3.06073,3267.2,3266.7,3.06112]
[1738306243695,0.05608175,3267.1,3266.5,6.61131]
[1738306244387,3.11689175,3267.1,3266.5,6.61131]
[1738306244588,0.03064644,3267.0,3266.1,1.0563]
[1738306244821,0.7901,3266.8,3266.2,6.12314]
[1738306245018,0.7901,3266.8,3266.3,3.0]
[1738306245404,0.05610007,3266.7,3266.3,3.0]
[1738306245922,0.05610921,3266.6,3266.3,3.0]
[1738306246223,3.85122,3266.8,3266.3,3.0]
[1738306246409,0.05610921,3266.7,3266.3,3.0]
[1738306246611,0.05610921,3266.7,3266.2,3.06157]
[1738306246816,4.57361692,3266.8,3266.3,35.0]
[1738306247324,0.05610921,3266.7,3266.3,35.0]
[1738306247827,4.57361692,3266.8,3266.3,35.0]
[1738306248123,0.05610921,3266.7,3266.3,35.0]
[1738306248632,3.0612,3266.7,3266.3,35.0]
[1738306248822,3.82774034,3266.7,3266.3,35.0]
[1738306249028,3.06134,3266.6,3266.3,35.0]
[1738306249521,0.05610921,3266.5,3266.3,35.0]
[1738306249725,0.08675565,3266.5,3266.3,35.0]
[1738306251514,0.05610921,3266.5,3266.3,35.0]
[1738306251749,0.44757281,3266.5,3266.3,35.0]
[1738306252054,3.06134,3266.6,3266.3,35.0]
[1738306252444,0.05610921,3266.5,3266.3,35.0]
[1738306253347,0.05610921,3266.5,3266.4,3.06147]
[1738306253683,0.7901,3266.8,3266.2,3.06162]
[1738306253812,0.7901,3266.8,3266.2,6.12318]
[1738306254013,0.05599932,3266.7,3266.4,35.0]
[1738306254209,0.7901,3266.8,3266.4,35.0]
[1738306254460,0.05599932,3266.7,3266.4,35.0]
[1738306254640,0.7901,3266.8,3266.4,35.0]
[1738306255146,0.05599932,3266.7,3266.4,35.0]
[1738306255517,0.7901,3266.8,3266.4,35.0]
[1738306256050,0.05599932,3266.7,3266.4,35.0]
[1738306256257,0.7901,3266.8,3266.4,35.0]
[1738306256554,0.05599932,3266.7,3266.4,35.0]
[1738306256719,3.14788576,3266.7,3266.4,35.0]
[1738306256919,3.09188644,3266.7,3266.4,35.0]
[1738306257144,3.06124,3266.7,3266.4,35.0]
[1738306257537,0.05599932,3266.6,3266.4,35.0]
[1738306257933,3.06124,3266.7,3266.4,35.0]
[1738306258133,3.752474,3266.7,3266.1,3.06175]
[1738306258341,0.05599932,3266.6,3266.1,3.06175]
[1738306258553,0.05599932,3266.6,3266.2,35.0]
[1738306258936,3.78312044,3266.7,3266.2,35.0]
[1738306259262,0.05599932,3266.6,3266.2,35.0]
[1738306259558,0.691234,3266.7,3266.2,35.0]
[1738306259758,3.752424,3266.7,3266.2,35.0]
[1738306259919,3.06119,3266.7,3266.2,38.06164]
[1738306260122,0.05599932,3266.6,3266.2,35.0]
[1738306260358,0.7901,3266.8,3266.2,35.0]
[1738306260554,0.7901,3266.8,3266.3,3.06156]
[1738306260734,3.0612,3266.7,3266.1,3.06175]
[1738306260933,3.14784576,3266.7,3266.1,3.06175]
[1738306261140,3.06128,3266.6,3266.2,35.0]
[1738306261336,3.45508258,3266.6,3266.2,35.0]
[1738306261538,3.06126,3266.7,3266.2,35.0]
[1738306261732,3.06126,3266.7,3266.2,38.06165]
[1738306262660,3.06129,3266.6,3266.2,35.0]
[1738306263631,3.85127,3266.8,3266.2,38.0616]
[1738306264059,0.05589859,3266.7,3266.2,38.06157]
[1738306264372,3.85284,3267.1,3266.4,3.0614]
[1738306264658,3.85284,3267.1,3266.3,3.06156]
[1738306264883,3.11675449,3267.0,3266.4,3.06141]
[1738306265169,3.09165644,3266.9,3266.4,3.06141]
[1738306265485,3.06127,3266.7,3266.2,35.0]
[1738306265779,0.08648093,3266.6,3266.2,35.0]
[1738306266084,0.03064644,3266.6,3266.2,35.0]
[1738306266265,3.81417,3266.7,3266.2,35.0]
[1738306266578,0.05583449,3266.6,3266.2,35.0]
[1738306267069,4.53233444,3266.7,3266.2,35.0]
[1738306267250,0.05583449,3266.6,3266.2,35.0]
[1738306267450,4.501688,3266.7,3266.2,35.0]
[1738306267871,0.05583449,3266.6,3266.2,35.0]
[1738306268067,4.501688,3266.7,3266.2,35.0]
[1738306268251,4.53233444,3266.7,3266.2,35.0]
[1738306268457,0.05583449,3266.6,3266.2,35.0]
[1738306268630,4.53233444,3266.7,3266.2,35.0]
[1738306268836,0.05583449,3266.6,3266.2,35.0]
[1738306269169,3.09207644,3266.5,3266.0,0.2504]
[1738306269533,0.05580246,3266.4,3266.0,0.2504]
[1738306269735,0.8011,3266.1,3266.0,0.2504]
[1738306269931,3.89349644,3266.1,3266.0,0.2504]
[1738306270135,0.8568704,3266.1,3266.0,0.2504]
[1738306270330,0.0557704,3266.1,3266.0,0.2504]
[1738306270766,0.8011,3266.4,3266.0,0.2504]
[1738306270929,0.83174644,3266.4,3266.0,0.2504]
[1738306271131,0.8011,3266.4,3266.0,3.31215]
[1738306271336,0.8011,3266.4,3266.0,0.2504]
[1738306271650,0.03064644,3266.3,3266.0,0.2504]
[1738306271849,3.06171,3266.2,3266.0,0.2504]
[1738306272039,3.89349644,3266.1,3266.0,0.2504]
[1738306272370,3.94297233,3266.1,3266.0,0.2504]
[1738306274189,3.86407,3264.8,3264.7,35.0]
[1738306274691,3.06331,3264.5,3263.9,1.0606]
[1738306274893,3.09395644,3264.5,3263.9,1.0606]
[1738306275098,0.049063,3264.4,3263.9,3.36991]
[1738306275244,0.049063,3264.4,3264.0,35.0]
[1738306275440,3.09395644,3264.5,3264.0,35.0]
[1738306275648,3.06337,3264.4,3264.0,35.0]
[1738306275960,0.049063,3264.3,3264.0,35.0]
[1738306276365,3.06316,3264.6,3263.8,3.0]
[1738306276580,3.449586,3264.6,3263.8,3.0]
[1738306276740,3.449586,3264.6,3263.8,6.06383]
[1738306276741,0.049063,3264.5,3263.8,6.06383]
[1738306276940,0.049063,3264.5,3264.0,3.0]
[1738306277438,0.7652,3265.4,3264.4,3.8304]
[1738306277647,0.7652,3265.4,3265.0,3.06273]
[1738306277648,0.382752,3265.3,3265.0,3.06273]
[1738306277882,0.04877846,3265.3,3265.1,38.06265]
[1738306278039,0.7652,3265.8,3265.1,35.0]
[1738306278245,3.06232,3265.5,3265.1,35.0]
[1738306278724,3.06299,3264.8,3264.2,3.0635]
[1738306278842,0.84392748,3265.4,3263.9,0.8229]
[1738306278843,0.04823711,3264.7,3264.3,3.06337]
[1738306279174,3.06278,3265.1,3264.4,3.06332]
[1738306279338,0.7652,3265.4,3264.3,3.06337]
[1738306279339,0.04823711,3264.6,3264.5,3.06318]
[1738306279539,0.7652,3265.4,3264.7,3.06303]
[1738306279942,0.04839774,3265.3,3264.9,3.06283]
[1738306280138,0.04839774,3265.3,3265.0,35.0]
[1738306280542,0.7652,3265.4,3265.0,35.0]
[1738306281049,3.82763,3265.4,3265.0,35.0]
[1738306281244,0.04855835,3265.3,3265.0,35.0]
[1738306281444,3.06224,3265.6,3265.0,35.0]
[1738306281644,3.756509,3265.6,3265.0,35.0]
[1738306281945,0.04855835,3265.5,3265.1,3.06266]
[1738306282278,0.8184,3265.7,3265.1,3.06266]
[1738306282667,3.88053,3265.7,3265.1,3.06266]
[1738306282868,3.88053,3265.7,3265.0,38.06273]
[1738306283268,3.09287644,3265.6,3265.0,38.06273]
[1738306283596,3.06245,3265.4,3265.0,35.0]
[1738306283823,3.09309644,3265.4,3265.0,35.0]
[1738306284129,0.04859965,3265.3,3264.6,3.06313]
[1738306284321,3.06271,3265.1,3264.5,3.06325]
[1738306284488,0.03064644,3265.0,3264.5,38.06325]
[1738306284687,3.06271,3265.1,3264.5,38.06325]
[1738306284881,3.06247,3265.4,3264.6,3.0075]
[1738306285307,0.04855836,3265.3,3264.7,3.063]
[1738306285507,0.03064644,3265.2,3264.7,38.063]
[1738306286113,0.03064644,3265.2,3264.7,3.063]
[1738306286420,0.85755836,3265.1,3264.5,3.06319]
[1738306286575,1.25264784,3265.1,3264.4,3.0]
[1738306286776,3.09350644,3265.0,3264.4,3.0]
[1738306286980,3.06298,3264.8,3264.4,3.0]
[1738306287174,0.03064644,3264.7,3264.4,3.0]
[1738306287417,3.06298,3264.8,3264.4,3.0]
[1738306287606,3.06309,3264.7,3264.2,3.3061]
[1738306288011,0.04847576,3264.6,3264.4,3.0]
[1738306288310,3.369278,3264.8,3264.4,3.0]
[1738306288516,3.06308,3264.7,3264.4,3.0]
[1738306288713,0.04847576,3264.6,3264.4,3.0]
[1738306288917,3.06307,3264.7,3264.4,3.0]
[1738306289207,0.306298,3264.8,3264.4,3.0]
[1738306289575,0.04847576,3264.7,3264.4,3.0]
[1738306290099,3.06294,3264.9,3264.4,3.0]
[1738306290298,0.04837479,3264.8,3264.4,3.0]
[1738306290516,0.03064644,3264.8,3264.4,3.0]
[1738306290815,0.04837479,3264.7,3264.4,3.0]
[1738306291011,0.04837479,3264.7,3264.6,3.06316]
[1738306291176,3.06251,3265.3,3264.5,0.7583]
[1738306291384,3.755944,3265.3,3264.7,3.063]
[1738306291580,0.04837479,3265.2,3264.7,3.063]
[1738306292022,3.755944,3265.3,3264.7,3.063]
[1738306292511,0.04837479,3265.2,3264.7,3.063]
[1738306292691,0.8095,3265.4,3264.9,3.06287]
[1738306292894,0.8095,3265.4,3264.9,3.06283]
[1738306293095,0.8095,3265.4,3265.0,3.06278]
[1738306293294,0.8095,3265.4,3264.9,3.06283]
[1738306295131,0.8095,3265.4,3265.0,3.06273]
[1738306295295,0.7515,3265.7,3264.9,3.06283]
[1738306295495,3.81364,3265.7,3265.1,3.06265]
[1738306295808,0.04852163,3265.6,3265.1,3.06265]
[1738306296510,0.04852163,3265.6,3265.2,3.06253]
[1738306296702,0.04852163,3265.6,3265.3,3.06249]
[1738306296902,0.04852163,3265.6,3265.4,35.0]
[1738306297131,0.7515,3265.7,3265.4,35.0]
[1738306298620,3.06182,3266.1,3265.4,38.06234]
[1738306299534,3.06196,3265.9,3265.4,35.0]
[1738306299742,0.04874649,3265.8,3265.4,35.0]
[1738306301127,0.04874649,3265.8,3265.3,3.06248]
[1738306302228,0.88044649,3265.8,3265.3,3.06248]
[1738306302622,0.03064644,3265.7,3265.3,3.06248]
[1738306302820,0.03064644,3265.7,3265.2,35.0]
[1738306302821,3.0624,3265.5,3265.2,35.0]
[1738306303031,0.03064644,3265.4,3264.7,7.36015]
[1738306303575,3.11160178,3265.3,3264.7,7.36015]
[1738306303730,3.09324644,3265.2,3264.7,7.36015]
[1738306303912,0.04900342,3265.1,3264.7,7.36015]
[1738306305746,0.04900342,3265.1,3264.9,3.06284]
[1738306305959,0.04900342,3265.1,3265.0,6.07778]
[1738306306270,0.7861,3265.9,3265.0,3.04562573]
[1738306306508,0.7861,3265.9,3265.4,3.06239]
[1738306306696,0.04869142,3265.8,3265.4,3.06239]
[1738306307264,0.04869142,3265.8,3265.2,6.06252]
[1738306308723,0.04869142,3265.8,3265.3,3.06242]
[1738306309020,0.04869142,3265.8,3265.3,3.06245]
[1738306309459,0.04869142,3265.8,3265.4,3.06239]
[1738306310413,0.04869142,3265.8,3265.2,3.0]
[1738306310617,0.07933786,3265.8,3265.2,6.06254]
[1738306310905,3.14144786,3265.8,3265.2,6.06254]
[1738306311079,0.04869142,3265.8,3265.2,6.06254]
[1738306311279,0.04869142,3265.8,3265.4,3.0624]
[1738306311495,0.04869142,3265.8,3265.5,3.06224]
[1738306312308,0.04869142,3265.8,3265.6,3.06213]
[1738306312494,0.04869142,3265.8,3265.7,3.06213]
[1738306312699,0.7691,3266.3,3266.0,3.06184]
[1738306313223,0.04903554,3266.2,3265.8,3.06197]
[1738306313629,0.7691,3266.3,3265.7,3.06213]